bitfinex-derivatives/quotes_BNBF0:USTF0_20250211
["timestamp","ask_amount","ask_price","bid_price","bid_amount"]
[1739251292643,0.31346488,638.03,636.43,0.28828184]
[1739251292837,0.31346488,638.03,636.41,0.28828184]
[1739251293037,0.31346488,638.03,636.4,0.31426775]
[1739251293241,0.31346488,638.03,636.41,0.28811704]
[1739251295340,0.31346488,638.03,636.41,0.8917528]
[1739251295644,0.31346488,638.03,636.42,0.28811704]
[1739251295943,0.31346488,638.03,636.43,0.28811704]
[1739251296144,0.31346488,638.03,636.44,0.28811704]
[1739251296344,0.31346488,638.03,636.41,0.60398862]
[1739251296345,0.31346488,638.03,636.42,0.28811704]
[1739251296541,0.31346488,638.03,636.43,0.28811704]
[1739251296739,0.31346488,638.03,636.41,0.89210566]
[1739251296946,0.31346488,638.03,636.41,1.12311704]
[1739251297142,0.31346488,638.03,636.42,0.28811704]
[1739251299649,0.26171406,638.02,636.42,0.28811704]
[1739251300150,0.31346488,638.03,636.41,0.835]
[1739251300341,0.26170956,638.02,636.42,0.28827372]
[1739251300546,0.26170956,638.02,636.41,0.835]
[1739251301951,0.26195525,638.01,636.41,0.835]
[1739251302251,0.26195525,638.0,636.41,0.835]
[1739251302451,0.26195525,637.99,636.41,0.835]
[1739251302747,0.31346488,638.03,636.41,0.835]
[1739251302748,0.26195525,637.98,636.41,0.835]
[1739251302946,0.26195525,638.02,636.41,0.835]
[1739251303152,0.26195525,638.01,636.41,0.835]
[1739251303450,0.26195525,638.0,636.41,0.835]
[1739251303652,0.26195525,638.02,636.41,0.835]
[1739251305853,0.26195525,638.02,636.41,1.037]
[1739251308849,0.31346488,638.03,636.41,1.037]
[1739251309054,0.26189974,638.02,636.41,1.037]
[1739251309256,1.63919626,638.01,636.41,1.037]
[1739251309555,0.26189974,638.0,636.41,1.037]
[1739251310149,0.26189974,637.99,636.41,1.037]
[1739251310355,0.26189974,638.0,636.41,1.037]
[1739251310653,0.26189974,637.99,636.41,1.037]
[1739251310854,0.26189974,638.0,636.41,1.037]
[1739251311154,0.26189974,637.99,636.41,1.037]
[1739251311454,0.26189974,637.98,636.41,1.037]
[1739251311654,0.26189974,638.0,636.41,1.037]
[1739251311954,0.26189974,637.99,636.41,1.037]
[1739251312153,1.63919626,638.01,636.41,1.037]
[1739251312154,0.26189974,637.98,636.41,1.037]
[1739251312349,0.26189974,638.0,636.41,1.037]
[1739251312555,0.26189974,637.99,636.41,1.037]
[1739251312757,0.26189974,637.98,636.41,1.037]
[1739251312950,0.26189974,638.0,636.41,1.037]
[1739251313153,0.26189974,637.99,636.41,1.037]
[1739251313455,0.31349436,637.97,636.41,1.037]
[1739251313656,0.26189974,637.96,636.41,1.037]
[1739251313856,0.3135091,637.94,636.41,1.037]
[1739251314056,0.26189974,637.93,636.41,1.037]
[1739251314257,0.26189974,637.92,636.41,1.037]
[1739251314552,0.26189974,637.91,636.41,1.037]
[1739251314857,0.26189974,637.9,636.41,1.037]
[1739251315052,0.26189974,637.89,636.41,1.037]
[1739251315255,0.26189974,637.88,636.41,1.037]
[1739251315454,0.26189974,637.87,636.41,1.037]
[1739251315654,0.3135091,637.94,636.41,1.037]
[1739251315857,0.26194318,637.93,636.41,1.037]
[1739251316055,0.26194318,637.92,636.41,1.037]
[1739251316557,0.26194318,637.91,636.41,1.037]
[1739251316757,0.26194318,637.9,636.41,1.037]
[1739251316954,0.26194318,637.93,636.41,1.037]
[1739251317661,0.31352385,637.91,636.41,1.037]
[1739251317858,0.26189271,637.9,636.41,0.202]
[1739251318059,0.31353859,637.88,636.41,0.202]
[1739251318353,0.26189271,637.87,636.41,0.202]
[1739251318558,0.31355334,637.85,636.41,0.202]
[1739251318855,0.26189271,637.84,636.41,0.202]
[1739251319356,0.31356809,637.82,636.41,0.202]
[1739251319660,0.26191655,637.81,636.41,0.202]
[1739251322158,0.31356809,637.82,636.41,0.202]
[1739251322355,0.26193882,637.81,636.41,0.202]
[1739251322757,0.31356809,637.82,636.41,0.202]
[1739251322960,0.26194131,637.81,636.41,0.202]
[1739251323757,0.31358284,637.79,636.41,0.202]
[1739251323956,0.26194131,637.78,636.41,0.202]
[1739251326659,0.26194131,637.78,636.42,0.28838816]
[1739251327556,1.63944724,637.83,636.41,0.202]
[1739251327557,0.57541863,637.77,636.41,0.202]
[1739251327761,0.26182596,637.76,636.41,0.202]
[1739251328859,0.3136025,637.75,636.41,0.202]
[1739251329260,0.26183658,637.74,636.41,0.202]
[1739251329459,0.31361234,637.73,636.41,0.202]
[1739251329664,0.26183658,637.72,636.41,0.202]
[1739251329865,0.31362217,637.71,636.42,0.28838604]
[1739251330284,0.31362217,637.71,636.41,0.202]
[1739251330285,0.26183888,637.7,636.41,0.202]
[1739251330462,0.31363201,637.69,636.41,0.202]
[1739251330666,0.26183888,637.68,636.42,0.28841752]
[1739251330868,0.31364185,637.67,636.4,1.353]
[1739251331066,0.26184963,637.66,636.41,0.28841583]
[1739251331263,0.31365168,637.65,636.41,0.28841583]
[1739251331462,0.26184963,637.64,636.41,0.28841583]
[1739251331663,0.31365168,637.65,636.4,1.353]
[1739251332169,0.31365168,637.65,636.4,1.555]
[1739251333669,0.26186071,637.64,636.41,0.28842719]
[1739251336267,0.26181485,637.63,636.42,0.28838052]
[1739251336567,0.31365168,637.65,636.43,0.28838052]
[1739251336971,0.31365168,637.65,636.44,0.28838052]
[1739251337174,0.31365168,637.65,636.41,0.28838052]
[1739251337773,0.31365168,637.65,636.4,1.648]
[1739251339277,0.31365168,637.65,636.41,0.2883848]
[1739251339478,0.31365168,637.65,636.4,1.648]
[1739251340679,0.26187459,637.64,636.4,1.648]
[1739251341474,0.31365168,637.65,636.4,1.648]
[1739251341677,0.26187271,637.64,636.4,1.648]
[1739251342073,0.31366152,637.63,636.4,1.648]
[1739251342279,0.26187271,637.62,636.4,1.648]
[1739251342481,0.31367136,637.61,636.4,1.648]
[1739251342679,0.26187271,637.6,636.4,1.648]
[1739251343275,0.26186944,637.59,636.4,1.648]
[1739251343577,0.26186944,637.58,636.4,1.648]
[1739251343781,0.26186944,637.6,636.4,1.648]
[1739251343980,1.95304136,637.61,636.4,1.648]
[1739251344177,0.26187041,637.6,636.4,1.648]
[1739251345182,0.26189835,637.59,636.4,1.648]
[1739251345483,0.57558447,637.58,636.4,1.648]
[1739251345682,0.26189835,637.57,636.4,1.648]
[1739251345880,0.57558939,637.57,636.4,1.648]
[1739251346182,0.31369104,637.57,636.4,1.648]
[1739251366998,1.63867525,637.56,636.4,1.648]
[1739251367697,0.31370088,637.55,636.4,1.648]
[1739251371698,0.26194537,637.54,636.4,1.648]
[1739251371898,0.31371564,637.52,636.4,1.648]
[1739251372093,0.26194537,637.51,636.4,1.648]
[1739251372296,0.31371564,637.52,636.4,1.648]
[1739251372496,0.26194136,637.51,636.4,1.648]
[1739251372694,0.31372549,637.5,636.4,1.648]
[1739251373797,0.2619371,637.49,636.4,1.648]
[1739251374101,0.31373533,637.48,636.4,1.648]
[1739251374401,0.2619371,637.47,636.4,1.648]
[1739251374696,0.31374517,637.46,636.4,1.648]
[1739251374900,0.2619371,637.45,636.4,1.648]
[1739251375203,0.31375502,637.44,636.4,1.648]
[1739251375602,0.26195225,637.43,636.4,1.648]
[1739251375798,0.31376486,637.42,636.4,1.648]
[1739251378704,1.63916409,637.41,636.4,1.648]
[1739251378900,0.3137747,637.4,636.4,1.648]
[1739251405925,1.63963391,637.39,636.4,1.648]
[1739251407021,0.26194971,637.38,636.4,1.648]
[1739251407219,1.63963391,637.39,636.4,1.648]
[1739251407827,0.26195694,637.38,636.4,1.648]
[1739251408429,0.26197632,637.37,636.4,1.648]
[1739251408730,0.26197632,637.36,636.4,1.648]
[1739251408928,0.26197632,637.35,636.4,1.648]
[1739251409131,0.26197632,637.34,636.4,1.648]
[1739251409324,0.26197632,637.38,636.4,1.648]
[1739251410123,1.63963391,637.39,636.4,1.648]
[1739251412930,0.31378455,637.38,636.4,1.648]
[1739251413333,1.40813443,638.73,636.42,0.31425788]
[1739251413529,0.31317528,638.62,636.43,0.28826068]
[1739251413731,0.26169073,638.61,636.44,0.314248]
[1739251413931,0.31322923,638.51,636.45,0.28826068]
[1739251414136,0.26169073,638.5,636.46,0.31423812]
[1739251414332,0.3132832,638.4,636.47,0.28826068]
[1739251414533,0.26169073,638.39,636.48,0.31422825]
[1739251414734,0.31329793,638.37,636.49,0.28826068]
[1739251414932,0.26169073,638.36,636.49,0.28826068]
[1739251415138,0.31331265,638.34,636.5,0.31421838]
[1739251415436,0.26169073,638.33,636.51,0.28826068]
[1739251416138,0.31332738,638.31,636.52,0.3142085]
[1739251416339,0.26169073,638.3,636.53,0.28826068]
[1739251416639,0.3133421,638.28,636.54,0.31419863]
[1739251416938,0.26164396,638.27,636.55,0.28820739]
[1739251417839,0.31335683,638.25,636.55,0.28820739]
[1739251418138,0.26164396,638.24,636.55,0.28820739]
[1739251418537,0.31337156,638.22,636.56,0.28831161]
[1739251418833,0.26174709,638.21,636.57,0.28831161]
[1739251419037,0.31338629,638.19,636.55,0.28831161]
[1739251419239,0.26174709,638.18,636.56,0.28831161]
[1739251419439,0.26174709,638.18,636.55,0.28831161]
[1739251419631,0.26174709,638.18,636.56,0.28831161]
[1739251419837,0.26174709,638.18,636.55,0.28831161]
[1739251420139,0.26174709,638.18,636.56,0.28831161]
[1739251420340,0.26174709,638.18,636.55,0.28831161]
[1739251420540,0.26174709,638.18,636.56,0.28831161]
[1739251420741,0.26174709,638.18,636.55,0.28831161]
[1739251420936,0.26174709,638.18,636.54,0.31419863]
[1739251421844,0.26181816,638.17,636.54,0.31419863]
[1739251422045,0.26181816,638.18,636.54,0.31419863]
[1739251422245,0.31340593,638.15,636.54,0.31419863]
[1739251422438,0.26181816,638.14,636.54,0.31419863]
[1739251422645,0.31342067,638.12,636.54,0.31419863]
[1739251422841,0.26181816,638.11,636.54,0.31419863]
[1739251423045,0.3134354,638.09,636.54,0.31419863]
[1739251423246,0.26181816,638.08,636.54,0.31419863]
[1739251423446,0.31345014,638.06,636.54,0.31419863]
[1739251423744,0.26180607,638.05,636.55,0.28837157]
[1739251423947,0.31346488,638.03,636.55,0.28837157]
[1739251424145,0.26180607,638.02,636.55,0.28837157]
[1739251424343,0.31347962,638.0,636.55,0.28837157]
[1739251424544,0.26180607,637.99,636.54,0.31419863]
[1739251424742,0.31349436,637.97,636.54,0.31419863]
[1739251424945,0.26180607,637.96,636.54,0.31419863]
[1739251425842,0.3135091,637.94,636.54,0.31419863]
[1739251426041,0.26180607,637.93,636.54,0.31419863]
[1739251426649,1.63906115,637.92,636.54,0.31419863]
[1739251426955,0.26180607,637.91,636.54,0.31419863]
[1739251427146,0.26181901,637.9,636.54,0.31419863]
[1739251427344,0.26181901,637.89,636.54,0.31419863]
[1739251427548,1.63906115,637.92,636.54,0.31419863]
[1739251427549,0.26181901,637.88,636.54,0.31419863]
[1739251427747,0.26181901,637.87,636.54,0.31419863]
[1739251427942,0.26181901,637.86,636.54,0.31419863]
[1739251428143,0.26181901,637.85,636.54,0.31419863]
[1739251428347,0.26181901,637.84,636.54,0.31419863]
[1739251428548,0.26181901,637.83,636.54,0.31419863]
[1739251428746,0.26181901,637.82,636.54,0.31419863]
[1739251428950,0.31357792,637.8,636.54,0.31419863]
[1739251430651,0.26182785,637.79,636.54,0.31419863]
[1739251430850,0.31359267,637.77,636.54,0.31419863]
[1739251431853,0.2618142,637.76,636.54,0.31419863]
[1739251433754,0.31359267,637.77,636.54,0.31419863]
[1739251433954,0.26178154,637.76,636.54,0.31419863]
[1739251434149,0.3136025,637.75,636.54,0.31419863]
[1739251434855,0.26178726,637.74,636.54,0.31419863]
[1739251435054,0.26178726,637.74,636.54,0.51619863]
[1739251435251,0.26178726,637.74,636.55,0.28834028]
[1739251435649,0.26178786,637.73,636.54,0.51619863]
[1739251435847,0.3136025,637.75,636.54,0.51619863]
[1739251442358,0.3136025,637.75,636.55,0.28827647]
[1739251444060,0.3136025,637.75,636.56,0.28822624]
[1739251444259,0.3136025,637.75,636.57,0.28822624]
[1739251444460,0.3136025,637.75,636.55,0.28822624]
[1739251444661,0.3136025,637.75,636.56,0.28822624]
[1739251444862,0.3136025,637.75,636.57,0.31418382]
[1739251445062,0.3136025,637.75,636.58,0.28822624]
[1739251445255,0.3136025,637.75,636.59,0.31417395]
[1739251445459,0.3136025,637.75,636.6,0.28822624]
[1739251445657,0.3136025,637.75,636.61,0.31416408]
[1739251445962,0.3136025,637.75,636.62,0.28818348]
[1739251446759,0.3136025,637.75,636.61,0.31416408]
[1739251446958,0.3136025,637.75,636.62,0.89264611]
[1739251447156,0.3136025,637.75,636.62,1.09464611]
[1739251447456,1.39825843,639.03,636.63,0.89264611]
[1739251447762,0.31303313,638.91,636.64,0.31414928]
[1739251447956,0.26157947,638.9,636.65,0.28818348]
[1739251448157,0.31309193,638.79,636.66,0.31413941]
[1739251448354,0.26157947,638.78,636.67,0.28818348]
[1739251448663,0.31314586,638.68,636.68,0.31412954]
[1739251448963,0.26157947,638.67,636.69,0.28818348]
[1739251449759,0.31314586,638.68,636.7,0.28814617]
[1739251449960,0.26158356,638.67,636.71,0.28814617]
[1739251450265,0.26158356,638.67,636.72,0.28814617]
[1739251450464,0.26158356,638.67,636.69,0.28814617]
[1739251450659,0.26158356,638.67,636.7,0.28814617]
[1739251450861,0.26158356,638.67,636.69,0.28814617]
[1739251451066,0.26155939,638.66,636.7,0.28812151]
[1739251451267,0.26155939,638.67,636.69,0.28812151]
[1739251451669,1.63770486,638.66,636.69,0.28812151]
[1739251451967,0.26155939,638.65,636.69,0.28812151]
[1739251452565,0.26155939,638.65,636.71,0.31411474]
[1739251452770,0.31317038,638.63,636.71,0.31411474]
[1739251452965,0.26152484,638.62,636.72,0.2880864]
[1739251453170,0.26152484,638.62,636.74,0.31409994]
[1739251453365,0.31318509,638.6,636.75,0.2880864]
[1739251453570,0.26152484,638.59,636.75,0.2880864]
[1739251453770,0.26152484,638.59,636.76,0.31409008]
[1739251453966,0.3131998,638.57,636.76,0.31409008]
[1739251455766,0.26151473,638.56,636.77,0.28807615]
[1739251457268,0.26151473,638.56,636.77,0.81907615]
[1739251457474,0.26151473,638.56,636.78,0.28807615]
[1739251457671,0.31321452,638.54,636.79,0.31407528]
[1739251457871,0.26151473,638.53,636.8,0.28807615]
[1739251458173,0.26151473,638.53,636.81,0.31406541]
[1739251458467,0.26151473,638.53,636.82,0.28807615]
[1739251459672,0.31322923,638.51,636.83,0.31405555]
[1739251460068,0.31322923,638.51,636.84,0.28808913]
[1739251460268,0.31322923,638.51,636.85,0.31404569]
[1739251460474,0.26150754,638.5,636.86,0.28808913]
[1739251460772,0.57474226,638.49,636.87,0.31403583]
[1739251460973,0.31324395,638.48,636.88,0.28808913]
[1739251461175,0.31324395,638.48,636.89,0.31402596]
[1739251461371,0.31324395,638.48,636.9,0.28808913]
[1739251461571,0.31324395,638.48,636.89,0.31402596]
[1739251461773,0.26152578,638.47,636.9,0.28808721]
[1739251462174,0.26152578,638.47,636.91,0.3140161]
[1739251462371,0.31325867,638.45,636.92,0.28808721]
[1739251462571,0.26152578,638.44,636.93,0.31400624]
[1739251462773,0.31326848,638.43,636.94,0.28808721]
[1739251462974,0.26152578,638.42,636.94,0.28808721]
[1739251463172,0.3132783,638.41,636.94,0.28808721]
[1739251463374,0.26152578,638.4,636.94,0.28808721]
[1739251463574,0.31328811,638.39,636.94,1.23908721]
[1739251463773,0.26152578,638.38,636.95,0.28808721]
[1739251463975,0.31329793,638.37,636.95,0.28808721]
[1739251464175,0.26152578,638.36,636.95,0.28808721]
[1739251464376,0.31330774,638.35,636.95,0.28808721]
[1739251464676,0.26152578,638.34,636.95,0.28808721]
[1739251464877,0.31331756,638.33,636.95,0.28808721]
[1739251465076,0.26152578,638.32,636.95,0.28808721]
[1739251465277,0.31332738,638.31,636.95,0.28808721]
[1739251465471,0.26152578,638.3,636.95,0.28808721]
[1739251465675,0.31333719,638.29,636.95,0.28808721]
[1739251467781,1.63703718,638.28,636.95,0.28808721]
[1739251467975,0.31334701,638.27,636.95,0.28808721]
[1739251470378,0.31334701,638.27,636.96,0.28811119]
[1739251470582,0.31334701,638.27,636.97,0.28811119]
[1739251470784,0.31334701,638.27,636.95,0.28811119]
[1739251471078,0.31334701,638.27,636.96,0.28811119]
[1739251471284,0.31334701,638.27,636.97,0.28811119]
[1739251471480,0.31334701,638.27,636.95,0.28811119]
[1739251471787,0.31334701,638.27,636.96,0.28811119]
[1739251471985,0.31334701,638.27,636.95,0.28811119]
[1739251472179,0.31334701,638.27,636.96,0.28811119]
[1739251472379,0.31334701,638.27,636.95,0.28811119]
[1739251472579,0.31334701,638.27,636.96,0.28811119]
[1739251472780,0.31334701,638.27,636.95,0.28811119]
[1739251472984,0.31334701,638.27,636.94,0.951]
[1739251473182,0.31334701,638.27,636.95,0.2881175]
[1739251473382,0.31334701,638.27,636.94,0.951]
[1739251473584,0.31334701,638.27,636.95,0.28811831]
[1739251473981,0.31334701,638.27,636.94,0.951]
[1739251474287,0.31334701,638.27,636.95,0.28812382]
[1739251474487,0.31334701,638.27,636.95,0.48912382]
[1739251474788,0.31334701,638.27,636.96,0.28812382]
[1739251477793,0.26159793,638.26,636.96,0.28812382]
[1739251477994,0.31336174,638.24,636.95,0.201]
[1739251478194,0.26159793,638.23,636.95,0.201]
[1739251478397,0.31337647,638.21,636.95,0.201]
[1739251478696,0.26159793,638.2,636.95,0.201]
[1739251478891,0.3133912,638.18,636.95,0.722]
[1739251479090,0.2616535,638.17,636.95,0.722]
[1739251479296,0.31340593,638.15,636.95,0.722]
[1739251479491,0.2616535,638.14,636.95,0.722]
[1739251479689,0.31342067,638.12,636.95,0.722]
[1739251479892,0.2616535,638.11,636.95,0.722]
[1739251480096,0.3134354,638.09,636.95,0.722]
[1739251480296,0.2616535,638.08,636.95,0.722]
[1739251480796,0.31344523,638.07,636.95,0.722]
[1739251480997,0.2616535,638.06,636.95,0.722]
[1739251481797,0.31345505,638.05,636.95,0.722]
[1739251481990,0.2616535,638.04,636.95,0.722]
[1739251482393,0.31346488,638.03,636.95,0.722]
[1739251484097,0.31346488,638.03,636.96,0.28813832]
[1739251487699,0.31346488,638.03,636.95,0.722]
[1739251487996,0.31346488,638.03,636.96,0.28813393]
[1739251488596,0.31346488,638.03,636.95,0.722]
[1739251490693,0.31346488,638.03,636.96,0.28810703]
[1739251492607,0.31346488,638.03,636.97,0.201]
[1739251492802,0.31346488,638.03,636.98,0.28810703]
[1739251494705,0.31346488,638.03,636.97,0.201]
[1739251494905,0.31346488,638.03,636.98,0.28805617]
[1739251495607,2.95212958,639.59,636.98,0.28805617]
[1739251495608,1.39825843,639.24,636.99,0.31397667]
[1739251495808,0.31292538,639.13,637.0,0.28805617]
[1739251496108,0.261482,639.12,637.01,0.31396681]
[1739251496311,0.31297924,639.02,637.02,0.28805617]
[1739251496509,0.31297924,639.02,637.03,0.31395695]
[1739251496807,0.26147693,639.01,637.04,0.28803782]
[1739251497005,0.31299394,638.99,637.04,0.60198984]
[1739251497206,0.26147693,638.98,637.05,0.28803782]
[1739251497406,0.31300863,638.96,637.05,0.28803782]
[1739251497700,0.26147693,638.95,637.05,0.28803782]
[1739251497901,0.31302333,638.93,637.05,0.28803782]
[1739251498101,0.26147693,638.92,637.05,0.28803782]
[1739251498309,0.31303803,638.9,637.05,0.28803782]
[1739251498509,0.26147693,638.89,637.05,0.28803782]
[1739251498809,0.31305273,638.87,637.05,0.28803782]
[1739251499004,0.26147693,638.86,637.05,0.28803782]
[1739251499203,0.31306743,638.84,637.05,0.28803782]
[1739251499404,0.26147693,638.83,637.05,0.28803782]
[1739251499609,0.31308213,638.81,637.05,0.28803782]
[1739251499810,0.31308213,638.81,637.04,0.31395202]
[1739251500010,0.26145276,638.8,637.05,0.28801327]
[1739251500209,0.31309684,638.78,637.05,0.28801327]
[1739251500409,0.26145276,638.77,637.05,0.28801327]
[1739251500610,0.31311154,638.75,637.05,0.28801327]
[1739251500808,0.26145276,638.74,637.05,0.28801327]
[1739251501007,0.31312625,638.72,637.05,0.28801327]
[1739251501210,0.26145276,638.71,637.05,0.28801327]
[1739251501511,0.31314096,638.69,637.05,0.28801327]
[1739251501710,0.26145276,638.68,637.05,0.28801327]
[1739251501913,0.31315566,638.66,637.05,0.28801327]
[1739251502112,0.26145276,638.65,637.05,0.28801327]
[1739251502312,0.31317038,638.63,637.05,0.28801327]
[1739251502605,0.26145276,638.62,637.05,0.28801327]
[1739251502811,0.31318509,638.6,637.05,0.28801327]
[1739251503205,0.26145276,638.59,637.05,0.28801327]
[1739251503905,0.3131949,638.58,637.06,0.31394217]
[1739251504111,0.26145276,638.57,637.07,0.28801327]
[1739251504312,0.31320471,638.56,637.08,0.31393231]
[1739251504514,0.26145276,638.55,637.09,0.28801327]
[1739251505014,0.26145276,638.55,637.1,0.31392246]
[1739251505214,0.31321452,638.54,637.11,0.28801327]
[1739251505513,0.26145276,638.53,637.11,0.28801327]
[1739251505709,0.31322923,638.51,637.11,0.28801327]
[1739251505909,0.26145276,638.5,637.11,0.28801327]
[1739251506311,0.31323904,638.49,637.1,0.31392246]
[1739251506615,0.26148827,638.48,637.11,0.28804924]
[1739251507018,0.31323904,638.49,637.11,0.28804924]
[1739251508112,0.31323904,638.49,637.1,0.31392246]
[1739251508309,0.31323904,638.49,637.11,0.28804468]
[1739251508514,0.31323904,638.49,637.1,0.31392246]
[1739251508712,0.31323904,638.49,637.11,0.28803204]
[1739251509911,1.63699226,638.48,637.11,0.28803204]
[1739251510112,0.31324886,638.47,637.11,0.28803204]
[1739251510812,0.31324886,638.47,637.12,0.201]
[1739251511016,0.31324886,638.47,637.13,0.28803204]
[1739251511620,0.31324886,638.47,637.12,0.201]
[1739251511826,0.31324886,638.47,637.13,0.28799138]
[1739251514021,0.31324886,638.47,637.13,0.86399138]
[1739251514225,0.31324886,638.47,637.13,0.576]
[1739251514827,0.31324886,638.47,637.14,0.28798857]
[1739251515927,0.31324886,638.47,637.15,0.28800195]
[1739251516225,0.31324886,638.47,637.13,0.576]
[1739251516226,0.31324886,638.47,637.14,0.28800195]
[1739251516423,0.31324886,638.47,637.15,0.28800195]
[1739251516621,0.31324886,638.47,637.14,0.28800195]
[1739251516825,0.31324886,638.47,637.15,0.28800195]
[1739251517025,0.31324886,638.47,637.14,0.28800195]
[1739251517230,0.31324886,638.47,637.15,0.28800195]
[1739251517429,0.31324886,638.47,637.16,0.31389289]
[1739251517723,0.31324886,638.47,637.17,0.28800195]
[1739251517921,0.31324886,638.47,637.18,0.31388304]
[1739251518123,0.31324886,638.47,637.19,0.28800195]
[1739251518328,0.31324886,638.47,637.2,0.31387319]
[1739251518626,0.31324886,638.47,637.21,0.28800195]
[1739251518822,0.31324886,638.47,637.2,0.31387319]
[1739251519128,0.31324886,638.47,637.22,0.31386334]
[1739251519328,0.31324886,638.47,637.23,0.28791894]
[1739251519629,0.31324886,638.47,637.24,0.31385349]
[1739251519828,0.31324886,638.47,637.25,0.90942762]
[1739251520029,0.31324886,638.47,637.26,0.31384364]
[1739251520224,0.31324886,638.47,637.27,0.90942762]
[1739251520423,0.31324886,638.47,637.28,0.31383379]
[1739251520628,0.31324886,638.47,637.29,0.90942762]
[1739251520824,0.31324886,638.47,637.3,0.31382394]
[1739251521027,0.31324886,638.47,637.31,0.90942762]
[1739251521228,0.31324886,638.47,637.32,0.60173303]
[1739251521429,0.31324886,638.47,637.22,0.9]
[1739251521430,0.31324886,638.47,637.33,1.22385205]
[1739251521630,0.31324886,638.47,637.34,1.22384712]
[1739251521830,0.31324886,638.47,637.35,0.60171826]
[1739251522129,0.31324886,638.47,637.36,0.3137944]
[1739251522326,0.31324886,638.47,637.37,0.28785616]
[1739251522531,0.31324886,638.47,637.38,0.31378455]
[1739251522732,0.31324886,638.47,637.39,0.28785616]
[1739251522931,0.31324886,638.47,637.4,0.3137747]
[1739251523132,0.31324886,638.47,637.41,0.28785616]
[1739251523432,0.31324886,638.47,637.42,0.31376486]
[1739251523629,1.39825843,639.76,637.43,0.28785616]
[1739251523830,0.31267099,639.65,637.44,0.31375502]
[1739251524132,0.26126642,639.64,637.45,0.28785616]
[1739251524333,0.26126642,639.64,637.46,0.31374517]
[1739251524532,0.31272477,639.54,637.47,0.28785616]
[1739251524725,0.26126642,639.53,637.47,0.60159641]
[1739251524931,0.31277856,639.43,637.48,0.28785616]
[1739251525235,0.26126642,639.42,637.48,0.28785616]
[1739251525633,0.31279324,639.4,637.48,0.28785616]
[1739251525829,0.26126642,639.39,637.48,0.28785616]
[1739251526028,0.31280792,639.37,637.48,0.28785616]
[1739251526234,0.26126642,639.36,637.48,0.28785616]
[1739251526534,0.31282259,639.34,637.48,0.28785616]
[1739251526731,0.26126642,639.33,637.47,0.31374025]
[1739251526934,0.26126642,639.33,637.48,0.28791151]
[1739251527329,0.26126642,639.33,637.47,0.31374025]
[1739251527529,0.26126642,639.33,637.48,0.28793016]
[1739251527737,0.31283727,639.31,637.48,0.28793016]
[1739251527936,0.26126642,639.3,637.48,0.28793016]
[1739251528536,0.26126642,639.3,637.47,0.31374025]
[1739251528735,0.31283727,639.31,637.48,0.28794135]
[1739251528736,0.26126642,639.29,637.48,0.28794135]
[1739251528936,0.31283727,639.31,637.47,0.31374025]
[1739251529135,0.26137979,639.3,637.47,0.31374025]
[1739251529331,0.31285195,639.28,637.47,0.31374025]
[1739251529531,0.26137979,639.27,637.47,0.31374025]
[1739251529732,0.31286664,639.25,637.47,0.31374025]
[1739251529931,0.26137979,639.24,637.47,0.31374025]
[1739251530135,0.31288132,639.22,637.47,0.31374025]
[1739251530439,0.26137979,639.21,637.47,0.31374025]
[1739251530632,0.312896,639.19,637.47,0.31374025]
[1739251531036,0.26138353,639.18,637.47,0.31374025]
[1739251531236,0.31291069,639.16,637.47,0.31374025]
[1739251531533,0.26138353,639.15,637.47,0.31374025]
[1739251531733,0.31292538,639.13,637.47,0.31374025]
[1739251531936,0.26138353,639.12,637.47,0.31374025]
[1739251532139,0.31294007,639.1,637.47,0.31374025]
[1739251532440,0.26138353,639.09,637.47,0.31374025]
[1739251532635,0.31295476,639.07,637.47,0.31374025]
[1739251532940,0.2613619,639.06,637.47,0.31374025]
[1739251533341,0.31296945,639.04,637.47,0.31374025]
[1739251533536,0.2613619,639.03,637.47,0.31374025]
[1739251533740,0.31298414,639.01,637.47,0.31374025]
[1739251534043,0.2613619,639.0,637.47,0.31374025]
[1739251534839,1.63662657,638.99,637.47,0.31374025]
[1739251535044,0.2613619,638.98,637.47,0.31374025]
[1739251535642,0.2613619,638.98,637.22,0.9]
[1739251535843,0.31300863,638.96,637.23,0.28796848]
[1739251536046,0.26140882,638.95,637.24,0.28796859]
[1739251536348,0.31302333,638.93,637.25,0.28796859]
[1739251536549,0.26140882,638.92,637.23,0.28803197]
[1739251536847,0.31303803,638.9,637.22,0.9]
[1739251537049,0.26140882,638.89,637.23,0.28802932]
[1739251537349,0.31305273,638.87,637.22,0.9]
[1739251537548,0.26140882,638.86,637.23,0.28803786]
[1739251537844,0.31306743,638.84,637.22,0.9]
[1739251538049,0.26149899,638.83,637.23,0.28805873]
[1739251538445,0.31308213,638.81,637.22,0.9]